bitfinex/quotes_BTCUSD_20250109
["timestamp","ask_amount","ask_price","bid_price","bid_amount"]
[1736416008337,0.363503,93676.0,93675.0,0.14954312]
[1736416008696,0.363503,93676.0,93675.0,0.14554312]
[1736416008892,0.363503,93676.0,93675.0,0.14754312]
[1736416009340,0.363503,93676.0,93675.0,0.14654312]
[1736416009574,0.363503,93676.0,93675.0,0.14554312]
[1736416009575,0.37877178,93676.0,93675.0,0.14554312]
[1736416009929,0.37877178,93676.0,93675.0,0.14654312]
[1736416010400,0.37877178,93676.0,93675.0,0.14554312]
[1736416011300,0.37877178,93676.0,93675.0,0.14954312]
[1736416011497,0.32877178,93676.0,93675.0,0.14554312]
[1736416012021,0.32877178,93676.0,93675.0,0.14654312]
[1736416012379,0.32877178,93676.0,93675.0,0.14754312]
[1736416012580,0.32877178,93676.0,93675.0,0.14654312]
[1736416012789,0.32877178,93676.0,93675.0,0.14554312]
[1736416014072,0.32877178,93676.0,93675.0,0.14954312]
[1736416014274,0.32877178,93676.0,93675.0,0.14554312]
[1736416015447,0.32877178,93676.0,93675.0,0.14954312]
[1736416015808,0.32877178,93676.0,93675.0,0.15054312]
[1736416016262,0.32877178,93676.0,93675.0,0.005]
[1736416016818,0.32877178,93676.0,93675.0,0.004]
[1736416017219,0.32877178,93676.0,93675.0,0.005]
[1736416017450,0.32877178,93676.0,93675.0,0.001]
[1736416018697,0.363513,93671.0,93670.0,0.41]
[1736416020495,0.364513,93671.0,93670.0,0.41]
[1736416020929,0.364513,93671.0,93670.0,0.413]
[1736416021752,0.363513,93671.0,93670.0,0.41]
[1736416021957,0.364513,93671.0,93670.0,0.41]
[1736416022166,0.365513,93671.0,93670.0,0.41]
[1736416023242,0.490813,93671.0,93670.0,0.2431702]
[1736416023440,0.490813,93671.0,93670.0,0.20302868]
[1736416023618,0.490813,93671.0,93670.0,0.19432279]
[1736416023821,4.106813,93671.0,93670.0,0.19432279]
[1736416024631,3.84772182,93671.0,93670.0,0.19432279]
[1736416024831,3.84672182,93671.0,93670.0,0.19432279]
[1736416025054,3.85072182,93671.0,93670.0,0.19432279]
[1736416025259,3.84972182,93671.0,93670.0,0.19432279]
[1736416025461,0.54872182,93671.0,93670.0,0.19432279]
[1736416025696,0.37193482,93671.0,93670.0,0.19432279]
[1736416025896,0.32393482,93671.0,93670.0,0.19432279]
[1736416026063,0.219513,93671.0,93670.0,0.19432279]
[1736416027678,0.215513,93671.0,93670.0,0.19432279]
[1736416027868,0.211513,93671.0,93670.0,0.19432279]
[1736416028071,0.211513,93671.0,93670.0,0.19732279]
[1736416028284,0.211513,93671.0,93670.0,0.19432279]
[1736416028687,0.211513,93671.0,93670.0,0.19732279]
[1736416028888,0.211513,93671.0,93670.0,0.19532279]
[1736416029310,0.211513,93671.0,93670.0,0.19832279]
[1736416029511,0.211513,93671.0,93670.0,0.19432279]
[1736416029720,0.211513,93671.0,93670.0,0.29962255]
[1736416029918,0.211513,93671.0,93670.0,0.42316591]
[1736416030994,0.211513,93671.0,93670.0,0.42616591]
[1736416031135,0.211513,93671.0,93670.0,0.42516591]
[1736416031540,0.211513,93671.0,93670.0,0.42616591]
[1736416032998,0.213506,93674.0,93673.0,0.04124336]
[1736416033180,0.213506,93674.0,93673.0,0.14554312]
[1736416034070,0.01526878,93676.0,93675.0,0.04124336]
[1736416034440,0.2135,93677.0,93675.0,0.14554312]
[1736416034653,0.2135,93677.0,93676.0,0.10429976]
[1736416035270,0.2135,93677.0,93676.0,0.19912781]
[1736416035685,0.2135,93677.0,93676.0,0.24037117]
[1736416035913,0.2135,93677.0,93676.0,0.24137117]
[1736416036524,0.22836795,93677.0,93676.0,0.24137117]
[1736416037557,0.22836795,93677.0,93676.0,0.14654312]
[1736416037937,0.22836795,93677.0,93676.0,0.28876701]
[1736416038652,0.22836795,93677.0,93676.0,0.14654312]
[1736416039409,0.22836795,93677.0,93676.0,0.28930095]
[1736416040134,0.22836795,93677.0,93676.0,0.14654312]
[1736416040682,0.22836795,93677.0,93676.0,0.14554312]
[1736416041035,0.22836795,93677.0,93676.0,0.14654312]
[1736416042607,0.22836795,93677.0,93676.0,0.28930095]
[1736416044260,0.22836795,93677.0,93676.0,0.28830095]
[1736416044659,0.22836795,93677.0,93676.0,0.28930095]
[1736416044862,0.213498,93678.0,93676.0,0.28930095]
[1736416045063,0.15,93681.0,93678.0,0.04124336]
[1736416045268,0.01497377,93681.0,93679.0,0.10429976]
[1736416045526,0.213492,93680.0,93679.0,0.14554312]
[1736416045837,0.213474,93688.0,93687.0,0.04124336]
[1736416046018,0.213474,93688.0,93687.0,0.14554312]
[1736416048505,0.219474,93688.0,93687.0,0.14554312]
[1736416048686,0.215474,93688.0,93687.0,0.14554312]
[1736416049038,0.213474,93688.0,93687.0,0.14554312]
[1736416049242,0.213474,93688.0,93687.0,0.14954312]
[1736416049393,0.213474,93688.0,93687.0,0.14654312]
[1736416049780,0.213474,93688.0,93687.0,0.15054312]
[1736416052309,0.213467,93691.0,93687.0,0.15054312]
[1736416052515,0.16174908,93692.0,93688.0,0.10429976]
[1736416053734,0.213469,93690.0,93688.0,0.10429976]
[1736416054500,0.213469,93690.0,93688.0,0.10729976]
[1736416054925,0.21396645,93690.0,93688.0,0.10429976]
[1736416055447,0.21396645,93690.0,93688.0,0.10729976]
[1736416056142,0.21396645,93690.0,93688.0,0.10829976]
[1736416058042,0.21396645,93690.0,93688.0,0.10529976]
[1736416058257,0.21396645,93690.0,93688.0,0.10429976]
[1736416058420,0.21396645,93690.0,93688.0,0.10729976]
[1736416058622,0.21396645,93690.0,93688.0,0.10829976]
[1736416059004,0.21396645,93690.0,93688.0,0.10729976]
[1736416059211,0.21396645,93690.0,93688.0,0.10529976]
[1736416059950,0.21396645,93690.0,93688.0,0.10829976]
[1736416063176,0.21396645,93690.0,93688.0,0.10429976]
[1736416063374,0.21396645,93690.0,93688.0,0.10529976]
[1736416064969,0.21396645,93690.0,93688.0,0.10829976]
[1736416065400,0.21396645,93690.0,93688.0,0.10529976]
[1736416065600,0.21396645,93690.0,93688.0,0.10729976]
[1736416066018,0.21396645,93690.0,93688.0,0.10829976]
[1736416066428,0.21396645,93690.0,93688.0,0.10729976]
[1736416066845,0.21396645,93690.0,93688.0,0.10829976]
[1736416068512,0.21396645,93690.0,93688.0,0.10529976]
[1736416068716,0.21396645,93690.0,93688.0,0.10729976]
[1736416069145,0.21396645,93690.0,93688.0,0.10829976]
[1736416069558,0.21396645,93690.0,93688.0,0.10429976]
[1736416069962,0.21396645,93690.0,93688.0,0.10829976]
[1736416072569,0.21396645,93690.0,93688.0,0.20340865]
[1736416073718,0.21396645,93690.0,93688.0,0.10829976]
[1736416074268,0.21396645,93690.0,93689.0,0.09511856]
[1736416074463,0.21396645,93690.0,93689.0,0.19941832]
[1736416074912,0.21396645,93690.0,93689.0,0.10429976]
[1736416075487,0.21396645,93690.0,93689.0,0.10529976]
[1736416075801,0.21396645,93690.0,93689.0,0.10829976]
[1736416079269,0.21396645,93690.0,93689.0,0.25105759]
[1736416079947,0.36396645,93690.0,93689.0,0.004]
[1736416080124,0.44616645,93690.0,93689.0,0.004]
[1736416080390,0.49505358,93690.0,93689.0,0.004]
[1736416080596,0.49446645,93690.0,93689.0,0.004]
[1736416081079,0.49446645,93690.0,93689.0,0.001]
[1736416081355,4.11046645,93690.0,93689.0,0.001]
[1736416081532,0.363499,93677.0,93676.0,0.05869557]
[1736416081802,0.493999,93677.0,93676.0,0.05869557]
[1736416081974,0.15,93676.0,93670.0,0.19432279]
[1736416082151,0.363513,93671.0,93670.0,0.19432279]
[1736416082973,3.673513,93671.0,93670.0,0.18990654]
[1736416083127,4.102513,93671.0,93670.0,0.18990654]
[1736416083335,4.16185677,93671.0,93670.0,0.03779576]
[1736416083536,4.16185677,93671.0,93670.0,0.03579576]
[1736416083981,4.16185677,93671.0,93670.0,7.6e-07]
[1736416084334,4.16185677,93671.0,93650.0,8.52e-05]
[1736416084335,0.213558,93651.0,93650.0,8.52e-05]
[1736416085621,0.213558,93651.0,93650.0,0.00023494]
[1736416086907,0.214558,93651.0,93650.0,0.00023494]
[1736416087111,0.364558,93651.0,93650.0,0.00023494]
[1736416088969,0.38213397,93651.0,93650.0,0.00023494]
[1736416092503,0.38213397,93651.0,93650.0,0.14577806]
[1736416092886,0.38213397,93651.0,93650.0,0.00023494]
[1736416093256,0.38113397,93651.0,93650.0,0.00023494]
[1736416094649,0.01757597,93651.0,93650.0,0.00123494]
[1736416094878,0.01757597,93651.0,93650.0,0.00023494]
[1736416095013,0.213555,93653.0,93650.0,0.00023494]
[1736416095227,0.213558,93651.0,93650.0,0.00023494]
[1736416095437,0.213558,93651.0,93650.0,0.00223494]
[1736416096194,0.213558,93651.0,93650.0,0.00023494]
[1736416096400,0.213558,93651.0,93650.0,0.00423494]
[1736416096628,0.213558,93651.0,93650.0,0.00023494]
[1736416097038,0.213558,93651.0,93650.0,0.00123494]
[1736416097237,0.213558,93651.0,93650.0,0.00023494]
[1736416097452,0.23113681,93653.0,93650.0,0.00023494]
[1736416097630,0.23113681,93653.0,93651.0,0.22874312]
[1736416098692,0.23113681,93653.0,93651.0,0.14554312]
[1736416098895,0.363558,93651.0,93650.0,0.00023494]
[1736416099436,0.36342951,93651.0,93650.0,0.00023494]
[1736416100421,0.36442951,93651.0,93650.0,0.00023494]
[1736416110332,0.21442951,93651.0,93650.0,0.00023494]
[1736416111505,0.36442951,93651.0,93650.0,0.00023494]
[1736416114068,0.151,93651.0,93650.0,0.1045347]
[1736416114276,0.001,93651.0,93650.0,0.22527806]
[1736416114827,0.001,93651.0,93650.0,0.25834095]
[1736416115444,0.001,93651.0,93650.0,0.26034095]
[1736416115571,0.001,93651.0,93650.0,0.22727806]
[1736416115775,0.01758181,93653.0,93652.0,0.04124336]
[1736416115976,0.15,93657.0,93652.0,0.14554312]
[1736416116207,0.15,93657.0,93653.0,0.10429976]
[1736416116401,0.427095,93656.0,93653.0,0.10429976]
[1736416116619,0.363552,93654.0,93653.0,0.10429976]
[1736416117284,0.363552,93654.0,93653.0,0.14554312]
[1736416117475,0.363552,93654.0,93653.0,0.10929976]
[1736416117674,0.363552,93654.0,93653.0,0.10429976]
[1736416117889,0.15,93653.0,93650.0,0.00023494]
[1736416118101,0.363558,93651.0,93650.0,0.00023494]
[1736416119719,0.363558,93651.0,93650.0,0.00223494]
[1736416119916,0.363558,93651.0,93650.0,0.00023494]
[1736416120326,0.363558,93651.0,93650.0,0.00123494]
[1736416121421,0.363558,93651.0,93650.0,0.00223494]
[1736416121828,0.363558,93651.0,93650.0,0.00123494]
[1736416122227,0.363558,93651.0,93650.0,0.00223494]
[1736416122813,0.363558,93651.0,93650.0,0.00123494]
[1736416123425,0.363558,93651.0,93650.0,0.00223494]
[1736416125223,0.363558,93651.0,93650.0,0.00023494]
[1736416125621,0.367558,93651.0,93650.0,0.00023494]
[1736416126375,0.364558,93651.0,93650.0,0.00023494]
[1736416126785,0.444758,93651.0,93650.0,0.00023494]
[1736416126987,0.444758,93651.0,93650.0,0.00123494]
[1736416127192,0.443758,93651.0,93650.0,0.00023494]
[1736416127394,4.059758,93651.0,93650.0,0.00123494]
[1736416128503,4.059758,93651.0,93650.0,0.00223494]
[1736416128700,0.363558,93651.0,93650.0,0.00223494]
[1736416128934,0.363558,93651.0,93650.0,0.00123494]
[1736416129137,0.363558,93651.0,93650.0,0.00223494]
[1736416129957,0.363558,93651.0,93650.0,0.00123494]
[1736416130383,0.363558,93651.0,93650.0,0.00223494]
[1736416130702,0.363558,93651.0,93650.0,0.09612124]
[1736416130945,0.363558,93651.0,93650.0,0.09712124]
[1736416132111,0.363558,93651.0,93650.0,0.09612124]
[1736416132336,0.363558,93651.0,93650.0,0.00023494]
[1736416132470,0.363558,93651.0,93650.0,0.00123494]
[1736416132670,0.363558,93651.0,93650.0,0.00223494]
[1736416132872,0.363558,93651.0,93650.0,0.09712124]
[1736416133300,0.363558,93651.0,93650.0,0.00223494]
[1736416139833,0.363558,93651.0,93650.0,0.09712124]
[1736416140192,0.363558,93651.0,93650.0,0.09612124]
[1736416140538,0.363558,93651.0,93650.0,0.00023494]
[1736416140757,0.363558,93651.0,93650.0,0.00123494]
[1736416141367,0.363558,93651.0,93650.0,0.00223494]
[1736416141793,0.01604572,93657.0,93654.0,0.04124336]
[1736416141989,0.213547,93656.0,93654.0,0.14554312]
[1736416142451,0.213542,93659.0,93658.0,0.04124336]
[1736416142662,0.363542,93659.0,93658.0,0.14554312]
[1736416142861,0.0149065,93659.0,93658.0,0.22594312]
[1736416143058,0.213532,93663.0,93661.0,0.04124336]
[1736416143285,0.22892291,93663.0,93661.0,0.04124336]
[1736416143472,0.22892291,93663.0,93658.0,0.37448741]
[1736416143473,0.01539091,93663.0,93662.0,0.14554312]
[1736416143742,0.0781,93688.0,93673.0,0.04124336]
[1736416144004,0.15,93676.0,93673.0,0.22494312]
[1736416144258,0.15,93676.0,93673.0,0.14554312]
[1736416144495,0.213504,93675.0,93673.0,0.14554312]
[1736416144840,0.363504,93675.0,93674.0,0.1427861]
[1736416145048,0.213499,93677.0,93676.0,0.04124336]
[1736416145274,0.213499,93677.0,93676.0,0.14554312]
[1736416145633,0.363499,93677.0,93676.0,0.14554312]
[1736416146583,0.363499,93677.0,93676.0,0.14654312]
[1736416147369,0.3789341,93677.0,93676.0,0.14654312]
[1736416147802,0.3789341,93677.0,93676.0,0.14554312]
[1736416148239,0.3789341,93677.0,93676.0,0.14754312]
[1736416148474,0.3789341,93677.0,93676.0,0.28814779]
[1736416148894,0.0154351,93677.0,93676.0,0.14654312]
[1736416149069,0.213491,93681.0,93680.0,0.04124336]
[1736416149243,0.213491,93681.0,93680.0,0.14554312]
[1736416150406,0.21398845,93681.0,93680.0,0.14554312]
[1736416150756,0.57747945,93681.0,93680.0,0.14554312]
[1736416151572,0.57747945,93681.0,93680.0,0.04224336]
[1736416151919,0.3644876,93681.0,93673.0,0.04124336]
[1736416152116,0.3644876,93681.0,93668.0,0.09502939]
[1736416152117,0.213517,93669.0,93668.0,0.13627275]
[1736416152301,0.363517,93669.0,93668.0,0.04124336]
[1736416153126,0.15,93669.0,93668.0,0.14554312]
[1736416153722,0.213502,93676.0,93675.0,0.04124336]
[1736416153881,0.213502,93676.0,93675.0,0.14554312]
[1736416155511,0.213502,93676.0,93675.0,0.14654312]
[1736416156167,0.00049745,93681.0,93675.0,0.14654312]
[1736416156372,0.363492,93680.0,93679.0,0.04124336]
[1736416156576,0.363492,93680.0,93679.0,0.14554312]
[1736416159194,0.363492,93680.0,93679.0,0.14954312]
[1736416159990,0.363492,93680.0,93679.0,0.14754312]
[1736416160658,0.363492,93680.0,93679.0,0.14554312]
[1736416160798,0.363492,93680.0,93679.0,0.14754312]
[1736416161492,0.363492,93680.0,93679.0,0.15154312]
[1736416161695,0.363492,93680.0,93679.0,0.14754312]
[1736416162105,0.363492,93680.0,93679.0,0.15154312]
[1736416163771,0.15,93680.0,93679.0,0.15154312]
[1736416163971,0.01579782,93681.0,93680.0,0.04124336]
[1736416164337,0.01579782,93681.0,93680.0,0.22664312]
[1736416165325,0.01579782,93681.0,93680.0,0.23064312]
[1736416165531,0.01579782,93681.0,93680.0,0.22664312]
[1736416166225,0.01579782,93681.0,93680.0,0.23064312]
[1736416166726,0.01579782,93681.0,93680.0,0.23164312]
[1736416167303,0.01579782,93681.0,93680.0,0.23064312]
[1736416167702,0.01579782,93681.0,93680.0,0.23164312]
[1736416169743,0.00049745,93681.0,93680.0,0.33185844]
[1736416169943,0.0001704,93689.0,93688.0,0.33181736]
[1736416169944,0.01530565,93689.0,93688.0,0.33181736]
[1736416170156,0.01530565,93689.0,93688.0,0.43611712]
[1736416171156,0.01530565,93689.0,93688.0,0.44011712]
[1736416171367,0.01630565,93689.0,93688.0,0.53824014]
[1736416171570,0.0001704,93689.0,93688.0,0.52524014]
[1736416171791,0.0011704,93689.0,93688.0,0.53424014]
[1736416172003,0.0011704,93689.0,93688.0,0.53824014]
[1736416172212,0.0001704,93689.0,93688.0,0.52924014]
[1736416172428,0.0001704,93689.0,93688.0,0.53824014]
[1736416172429,0.00123406,93689.0,93688.0,0.53824014]
[1736416172902,0.00023406,93689.0,93688.0,0.56092162]
[1736416173109,0.00023406,93689.0,93688.0,0.4717986]
[1736416173251,0.00023406,93689.0,93688.0,0.4677986]
[1736416173677,0.00023406,93689.0,93688.0,0.4707986]
[1736416174101,0.00023406,93689.0,93688.0,0.43611712]
[1736416174256,0.00023406,93689.0,93688.0,0.46908464]
[1736416174452,0.00123406,93689.0,93688.0,0.5853844]
[1736416174672,0.00123406,93689.0,93688.0,0.55241688]
[1736416174899,0.00123406,93689.0,93688.0,0.44811712]
[1736416175753,0.00123406,93689.0,93688.0,0.54281756]
[1736416176377,0.00123406,93689.0,93688.0,0.5758001]
[1736416176896,0.00123406,93689.0,93688.0,0.5728001]
[1736416177073,0.00123406,93689.0,93688.0,0.47809966]
[1736416177280,0.00123406,93689.0,93688.0,0.48109966]
[1736416177483,0.00023406,93689.0,93688.0,0.47209966]
[1736416177686,0.00123406,93689.0,93688.0,0.47909966]
[1736416178080,0.00123406,93689.0,93688.0,0.58339942]
[1736416178244,0.0001706,93697.0,93696.0,0.04124336]
[1736416178440,0.01879825,93697.0,93696.0,0.17852566]
[1736416178673,0.0001706,93697.0,93696.0,0.17852566]
[1736416179422,0.0001706,93697.0,93696.0,0.18252566]
[1736416179854,0.0001706,93697.0,93696.0,0.18352566]
[1736416180370,0.0001706,93697.0,93696.0,0.41021538]
[1736416180993,0.0001706,93697.0,93696.0,0.48551538]
[1736416182004,0.0001706,93697.0,93696.0,0.51717594]
[1736416183707,0.0001706,93697.0,93696.0,0.50394222]
[1736416184474,0.0001706,93697.0,93696.0,0.78828956]
[1736416185159,0.0001706,93697.0,93696.0,0.50394222]
[1736416185978,0.0001706,93697.0,93696.0,0.50294222]
[1736416186400,0.0001706,93697.0,93696.0,0.50394222]
[1736416187081,0.0001706,93697.0,93696.0,0.49994222]
[1736416187198,0.0001706,93697.0,93696.0,0.50785533]
[1736416187404,0.0001706,93697.0,93696.0,0.51185533]
[1736416187655,0.0001706,93697.0,93696.0,0.54370767]
[1736416188722,0.0001706,93697.0,93696.0,0.51185533]
[1736416191477,0.0001706,93697.0,93696.0,0.93204578]
[1736416192941,0.0001706,93697.0,93696.0,0.51185533]
[1736416194735,0.0001706,93697.0,93696.0,0.29839933]
[1736416194943,0.0001706,93697.0,93696.0,0.35603933]
[1736416196219,0.0001706,93697.0,93696.0,0.31479597]
[1736416196450,0.0001706,93697.0,93696.0,0.23949597]
[1736416196863,0.0001706,93697.0,93696.0,0.20783541]
[1736416197038,0.0001706,93697.0,93696.0,0.24907877]
[1736416197600,0.0001706,93697.0,93696.0,0.24116566]
[1736416198006,0.0001706,93697.0,93696.0,0.5415868]
[1736416198208,0.0001706,93697.0,93696.0,0.50860426]
[1736416198390,0.0001706,93697.0,93696.0,0.56996414]
[1736416198856,0.17394611,93702.0,93696.0,0.56996414]
[1736416199056,0.17400997,93702.0,93701.0,0.04124336]
[1736416199315,0.17400997,93702.0,93701.0,0.18946507]
[1736416199717,0.17400997,93702.0,93701.0,0.37921361]
[1736416200460,0.17400997,93702.0,93701.0,0.41221101]
[1736416200673,6.386e-05,93702.0,93701.0,0.62565501]
[1736416200867,6.386e-05,93702.0,93701.0,0.70135501]
[1736416201322,0.00106386,93702.0,93701.0,0.52060647]
[1736416201479,0.00106386,93702.0,93701.0,0.52853031]
[1736416201886,0.00106386,93702.0,93701.0,0.53253031]
[1736416202306,0.00106386,93702.0,93701.0,0.73253031]
[1736416202504,0.00106386,93702.0,93701.0,0.72853031]
[1736416202708,0.00106386,93702.0,93701.0,0.73253031]
[1736416203319,0.00106386,93702.0,93701.0,0.77273031]
[1736416203320,6.386e-05,93702.0,93701.0,0.77273031]
[1736416203666,0.00106386,93702.0,93701.0,0.77773031]
[1736416203860,0.00106386,93702.0,93701.0,0.79439754]
[1736416204073,0.00106386,93702.0,93701.0,0.90689754]
[1736416204275,0.0001706,93709.0,93708.0,0.58107136]
[1736416204478,0.0001706,93709.0,93708.0,0.82266828]
[1736416205876,0.0001706,93709.0,93708.0,0.84325935]
[1736416206301,0.0001706,93709.0,93708.0,0.84925935]
[1736416206706,0.0001706,93709.0,93708.0,0.85825935]
[1736416208911,0.0001706,93709.0,93708.0,0.8818196]
[1736416213826,0.0001706,93709.0,93708.0,0.9393796]
[1736416215498,0.0001706,93709.0,93708.0,1.0893796]
[1736416218981,8.53e-05,93733.0,93732.0,0.04124336]
[1736416219159,8.53e-05,93733.0,93732.0,0.30226824]
[1736416219364,0.00019175,93733.0,93732.0,0.30120156]
[1736416220201,0.00019175,93733.0,93732.0,0.30320156]
[1736416220396,0.00019175,93733.0,93732.0,0.27620416]
[1736416221054,0.00019175,93733.0,93732.0,0.30913133]
[1736416221258,0.00019175,93733.0,93732.0,0.27620416]
[1736416222120,0.00019175,93733.0,93732.0,0.21110312]
[1736416222321,0.12499175,93733.0,93732.0,0.16985976]
[1736416222524,0.12499175,93733.0,93732.0,0.21110312]
[1736416222676,0.12499175,93733.0,93732.0,0.15354312]
[1736416223080,0.12499175,93733.0,93732.0,0.29574391]
[1736416223582,0.12499175,93733.0,93732.0,0.15354312]
[1736416226425,0.12499175,93733.0,93732.0,0.008]
[1736416226426,0.27499175,93733.0,93732.0,0.008]
[1736416226628,0.27637416,93733.0,93732.0,0.008]
[1736416226797,0.27499175,93733.0,93732.0,0.008]
[1736416227720,0.27499175,93733.0,93732.0,0.002]
[1736416228123,0.27599175,93733.0,93732.0,0.002]
[1736416228299,0.576748,93732.0,93729.0,0.04124336]
[1736416228503,0.576748,93732.0,93729.0,0.14554312]
[1736416229586,0.213378,93730.0,93729.0,0.14554312]
[1736416229793,0.363378,93730.0,93729.0,0.14554312]
[1736416229987,0.487478,93730.0,93729.0,0.14554312]
[1736416230223,0.487478,93730.0,93729.0,0.10429976]
[1736416230798,0.487478,93730.0,93729.0,0.14554312]
[1736416231194,0.387478,93730.0,93729.0,0.14554312]
[1736416231503,0.2741,93730.0,93729.0,0.14554312]
[1736416231687,0.487478,93730.0,93729.0,0.14554312]
[1736416237877,0.213378,93730.0,93729.0,0.14554312]
[1736416238081,0.213374,93732.0,93729.0,0.14554312]
[1736416238082,0.00019175,93733.0,93732.0,0.04124336]
[1736416238285,0.00019175,93733.0,93732.0,0.14554312]
[1736416239310,0.00019175,93733.0,93732.0,0.28774391]
[1736416239714,0.00019175,93733.0,93732.0,0.28974391]
[1736416239916,0.00019175,93733.0,93732.0,0.14754312]
[1736416240452,0.00019175,93733.0,93732.0,0.20995232]
[1736416240698,0.00019175,93733.0,93732.0,0.20495232]
[1736416240862,0.00019175,93733.0,93732.0,0.20995232]
[1736416242050,0.00019175,93733.0,93732.0,0.26751232]
[1736416242248,8.52e-05,93735.0,93734.0,0.04124336]
[1736416242449,8.52e-05,93735.0,93734.0,0.22724479]
[1736416242653,8.52e-05,93735.0,93734.0,0.22617808]
[1736416242852,8.52e-05,93735.0,93734.0,0.45915132]
[1736416243068,0.0001704,93745.0,93744.0,0.04124336]
[1736416243279,0.0001704,93745.0,93744.0,0.26108284]
[1736416243453,0.0001704,93745.0,93744.0,0.26001636]
[1736416243836,0.0001704,93745.0,93744.0,0.54425279]
[1736416244040,0.0001704,93745.0,93744.0,0.64855255]
[1736416244288,0.0001704,93745.0,93744.0,0.55325279]
[1736416244486,0.0001704,93745.0,93744.0,0.26001636]
[1736416245139,0.0001704,93745.0,93744.0,0.26901636]
[1736416245316,0.0001704,93745.0,93744.0,0.27301636]
[1736416245739,0.0001704,93745.0,93744.0,0.37331612]
[1736416246147,0.0001704,93745.0,93744.0,0.37731612]
[1736416246708,0.0001704,93745.0,93744.0,0.26401636]
[1736416247115,0.0001704,93745.0,93744.0,0.37301636]
[1736416247519,0.0001704,93745.0,93744.0,0.65763408]
[1736416248160,0.0001704,93745.0,93744.0,0.37301636]
[1736416248363,0.0001704,93745.0,93744.0,0.46001636]
[1736416248595,0.0001704,93745.0,93744.0,0.56431612]
[1736416248794,0.0001704,93745.0,93744.0,0.57731612]
[1736416249304,0.0001704,93745.0,93744.0,0.57331612]
[1736416250311,0.20048551,93764.0,93750.0,0.213333]
[1736416250540,0.00014957,93763.0,93753.0,0.10429976]
[1736416250737,0.00014957,93763.0,93762.0,0.09482052]
[1736416250963,0.00014957,93763.0,93762.0,0.19912028]
[1736416251345,0.21345257,93763.0,93762.0,0.19912028]
[1736416251836,0.21345257,93763.0,93762.0,0.10429976]
[1736416252031,0.21345257,93763.0,93762.0,0.10629976]
[1736416252475,0.21345257,93763.0,93762.0,0.11229976]
[1736416252657,0.21345257,93763.0,93762.0,0.10429976]
[1736416253116,0.21345257,93763.0,93762.0,0.10829976]
[1736416254464,0.21345257,93763.0,93762.0,0.11329976]
[1736416254643,0.21345257,93763.0,93762.0,0.11529976]
[1736416254844,0.21345257,93763.0,93762.0,0.10629976]
[1736416255092,0.21345257,93763.0,93762.0,0.11229976]
[1736416255695,0.21345257,93763.0,93762.0,0.11029976]
[1736416255891,0.21345257,93763.0,93762.0,0.11229976]
[1736416257992,0.21345257,93763.0,93762.0,0.11029976]
[1736416258439,0.21345257,93763.0,93762.0,0.11229976]
[1736416258981,0.21345257,93763.0,93762.0,0.17354312]
[1736416261144,0.21345257,93763.0,93762.0,0.17154312]
[1736416261405,0.21345257,93763.0,93762.0,0.16754312]
[1736416261778,0.21345257,93763.0,93762.0,0.17354312]
[1736416262877,0.21345257,93763.0,93762.0,0.17154312]
[1736416263032,0.21345257,93763.0,93762.0,0.16554312]
[1736416263235,0.21345257,93763.0,93762.0,0.17154312]
[1736416263460,0.21345257,93763.0,93762.0,0.29515489]
[1736416263461,0.00014957,93763.0,93762.0,0.29515489]
[1736416263868,0.00014957,93763.0,93762.0,0.50846089]
[1736416264324,0.00014957,93763.0,93762.0,0.46384912]
[1736416264736,0.00014957,93763.0,93762.0,0.59789692]
[1736416264938,0.00014957,93763.0,93762.0,0.60689692]
[1736416265142,0.00014957,93763.0,93762.0,0.61089692]
[1736416265342,0.00014957,93763.0,93762.0,0.46884912]
[1736416266321,0.00014957,93763.0,93762.0,0.25554312]
[1736416267364,0.00014957,93763.0,93762.0,0.31306312]
[1736416268273,0.00014957,93763.0,93762.0,0.39473734]
[1736416268625,0.00014957,93763.0,93762.0,0.40773734]
[1736416268837,0.00014957,93763.0,93762.0,0.31306312]
[1736416269037,0.00014957,93763.0,93762.0,0.23606312]
[1736416270469,0.00014957,93763.0,93762.0,0.29500387]
[1736416270673,0.00014957,93763.0,93762.0,0.23606312]
[1736416271170,8.52e-05,93768.0,93762.0,0.26900866]
[1736416271510,8.52e-05,93768.0,93767.0,0.10429976]
[1736416271714,8.52e-05,93768.0,93767.0,0.10536607]
[1736416272016,8.52e-05,93768.0,93767.0,0.10429976]
[1736416272228,8.52e-05,93768.0,93767.0,0.200968]
[1736416272777,8.52e-05,93768.0,93767.0,0.209968]
[1736416273299,8.52e-05,93768.0,93767.0,0.14628215]
[1736416273498,8.52e-05,93768.0,93767.0,0.11329976]
[1736416274078,8.52e-05,93768.0,93767.0,0.1462911]
[1736416274701,8.52e-05,93768.0,93767.0,0.1492911]
[1736416274883,0.213283,93772.0,93767.0,0.1492911]
[1736416275086,0.213283,93772.0,93769.0,0.10429976]
[1736416275381,0.213283,93772.0,93770.0,0.03299134]
[1736416275628,0.213283,93772.0,93771.0,0.10429976]
[1736416275807,0.213283,93772.0,93771.0,0.13730617]
[1736416277090,0.213283,93772.0,93771.0,0.14430617]
[1736416278036,0.213283,93772.0,93771.0,0.14730617]
[1736416278233,0.213283,93772.0,93771.0,0.14030617]
[1736416278699,0.213283,93772.0,93771.0,0.14730617]
[1736416278932,0.213283,93772.0,93771.0,0.23498039]
[1736416279229,0.213283,93772.0,93771.0,0.24298039]
[1736416279538,0.213283,93772.0,93771.0,0.23498039]
[1736416279752,0.213283,93772.0,93771.0,0.14030617]
[1736416279955,0.213283,93772.0,93771.0,0.14830617]
[1736416280154,0.213283,93772.0,93771.0,0.28230422]
[1736416280346,0.23205365,93775.0,93771.0,0.28230422]
[1736416280548,0.23205365,93775.0,93772.0,0.03300641]
[1736416280797,0.23205365,93775.0,93773.0,0.13730617]
[1736416280969,0.23205365,93775.0,93774.0,0.03300641]
[1736416281169,0.23205365,93775.0,93774.0,0.13730617]
[1736416281372,0.23205365,93775.0,93774.0,0.2795821]
[1736416281720,0.23205365,93775.0,93774.0,0.32694722]
[1736416282395,0.23205365,93775.0,93774.0,0.14530617]
[1736416288747,0.23205365,93775.0,93774.0,0.18654953]
[1736416288953,0.31175365,93775.0,93774.0,0.4710111]
[1736416289309,0.31175365,93775.0,93774.0,0.15354312]
[1736416289720,0.31175365,93775.0,93774.0,0.14754312]
[1736416289925,0.31175365,93775.0,93774.0,0.15154312]
[1736416290132,0.31175365,93775.0,93774.0,0.15354312]
[1736416290478,0.31175365,93775.0,93774.0,0.14754312]
[1736416290677,0.31175365,93775.0,93774.0,0.15354312]
[1736416291297,0.31175365,93775.0,93774.0,0.11029976]
[1736416291472,0.31175365,93775.0,93774.0,0.11229976]
[1736416291675,0.46175365,93775.0,93774.0,0.11229976]
[1736416291897,0.46175365,93775.0,93774.0,0.29676637]
[1736416292112,0.50955365,93775.0,93774.0,0.19246661]